fUST/lending_fUST_20250619
["ID","MTS","AMOUNT","RATE_DAILY","PERIOD"]
[366482063,1750282245192,-460.0,0.00023013,6]
[366482064,1750282245205,-460.0,0.00023013,6]
[366482065,1750282245216,-562.43,0.00023013,6]
[366482066,1750282245228,-411.10680584,0.00023013,6]
[366482068,1750282245241,-460.0,0.00023013,6]
[366482069,1750282245253,-718.27,0.00023013,6]
[366482070,1750282245264,-460.0,0.00023013,6]
[366482071,1750282245275,-460.0,0.00023013,6]
[366482072,1750282245287,-460.0,0.00023013,6]
[366482073,1750282245299,-317.99541671,0.00023013,6]
[366482074,1750282245313,-460.0,0.00023013,6]
[366482075,1750282245324,-460.0,0.00023013,6]
[366482076,1750282245340,-460.0,0.00023013,6]
[366482077,1750282245352,-460.0,0.00023013,6]
[366482078,1750282245363,-460.0,0.00023013,6]
[366482079,1750282245375,-460.0,0.00023013,6]
[366482080,1750282245386,-460.0,0.00023013,6]
[366482081,1750282245398,-460.0,0.00023013,6]
[366482082,1750282245410,-599.57021451,0.00023013,6]
[366482083,1750282245423,-1293.8,0.00023013,6]
[366482085,1750282245434,-616.76,0.00023013,6]
[366482086,1750282245446,-460.0,0.00023013,6]
[366482087,1750282245457,-460.0,0.00023013,6]
[366482088,1750282245469,-4062.24,0.00023013,6]
[366482089,1750282245481,-725.3,0.00023013,6]
[366482090,1750282245492,-266.59784606,0.00023013,6]
[366482091,1750282245504,-3306.5,0.00023013,6]
[366482092,1750282245516,-875.66,0.00023013,6]
[366482093,1750282245528,-527.87524129,0.00023013,6]
[366482094,1750282245540,-460.0,0.00023013,6]
[366482095,1750282245552,-151.0,0.00023013,7]
[366482096,1750282245564,-948.47,0.00023013,6]
[366482097,1750282245575,-151.0,0.00023013,7]
[366482098,1750282245587,-430.0,0.00023013,6]
[366482099,1750282245599,-460.0,0.00023013,6]
[366482100,1750282245610,-460.0,0.00023013,6]
[366482101,1750282245622,-460.0,0.00023013,6]
[366482102,1750282245634,-460.0,0.00023013,6]
[366482103,1750282245645,-460.0,0.00023013,6]
[366482104,1750282245657,-492.7,0.00023013,6]
[366482105,1750282245669,-460.0,0.00023013,6]
[366482106,1750282245681,-734.8,0.00023013,6]
[366482107,1750282245692,-460.0,0.00023013,6]
[366482108,1750282245704,-4375.89,0.00023013,6]
[366482109,1750282245716,-460.0,0.00023013,6]
[366482110,1750282245728,-460.0,0.00023013,6]
[366482111,1750282245739,-4111.9,0.00023013,6]
[366482112,1750282245751,-460.0,0.00023013,6]
[366482113,1750282245762,-460.0,0.00023013,6]
[366482114,1750282245774,-846.78,0.00023013,6]
[366482115,1750282245786,-460.0,0.00023013,6]
[366482116,1750282245798,-151.0,0.00023013,7]
[366482117,1750282245810,-1793.91,0.00023013,6]
[366482119,1750282245822,-2448.44,0.00023013,6]
[366482121,1750282245835,-782.59,0.00023013,6]
[366482123,1750282245849,-610.21,0.00023013,6]
[366482124,1750282245862,-3378.4,0.00023013,6]
[366482125,1750282245875,-460.0,0.00023013,6]
[366482126,1750282245888,-460.0,0.00023013,6]
[366482127,1750282245902,-460.0,0.00023013,6]
[366482128,1750282245915,-460.0,0.00023013,6]
[366482129,1750282245925,-1409.21,0.00023013,6]
[366482130,1750282245935,-460.0,0.00023013,6]
[366482132,1750282245946,-460.0,0.00023013,6]
[366482134,1750282245955,-766.64,0.00023013,6]
[366482136,1750282245965,-460.0,0.00023013,6]
[366482138,1750282245974,-460.0,0.00023013,6]
[366482140,1750282245984,-460.0,0.00023013,6]
[366482142,1750282245994,-460.0,0.00023013,6]
[366482144,1750282246004,-420.0,0.00023013,6]
[366482145,1750282246014,-789.31,0.00023013,6]
[366482147,1750282246194,-460.0,0.00023013,6]
[366482148,1750282246207,-1460.02,0.00023013,6]
[366482149,1750282246217,-464.29,0.00023013,6]
[366482150,1750282246226,-460.0,0.00023013,6]
[366482151,1750282246235,-460.0,0.00023013,6]
[366482152,1750282246244,-460.0,0.00023013,6]
[366482153,1750282246254,-460.0,0.00023013,6]
[366482154,1750282246263,-463.21,0.00023013,6]
[366482155,1750282246273,-1095.89,0.00023013,6]
[366482156,1750282246282,-1504.38,0.00023013,6]
[366482157,1750282246291,-460.0,0.00023013,6]
[366482158,1750282246300,-460.0,0.00023013,6]
[366482159,1750282246309,-460.0,0.00023013,6]
[366482160,1750282246318,-1701.83,0.00023013,6]
[366482161,1750282246330,-460.0,0.00023013,6]
[366482162,1750282246347,-694.76,0.00023013,6]
[366482163,1750282246359,-513.06,0.00023013,6]
[366482164,1750282246368,-151.0,0.00023013,7]
[366482165,1750282246379,-151.0,0.00023013,7]
[366482166,1750282246388,-624.32,0.00023013,6]
[366482167,1750282246397,-280.95216294,0.00023013,6]
[366482168,1750282246406,-460.0,0.00023013,6]
[366482169,1750282246417,-460.0,0.00023013,6]
[366482170,1750282246426,-460.0,0.00023013,6]
[366482171,1750282246436,-369.166354,0.00023013,7]
[366482172,1750282246445,-635.9,0.00023013,6]
[366482173,1750282246454,-460.0,0.00023013,6]
[366482174,1750282246464,-2273.06,0.00023013,6]
[366482175,1750282246473,-369.166354,0.00023013,7]
[366482176,1750282246482,-460.0,0.00023013,6]
[366482177,1750282246491,-460.0,0.00023013,6]
[366482178,1750282246501,-460.0,0.00023013,6]
[366482179,1750282246510,-460.0,0.00023013,6]
[366482180,1750282246519,-460.0,0.00023013,6]
[366482181,1750282246529,-460.0,0.00023013,6]
[366482182,1750282246538,-460.0,0.00023013,6]
[366482183,1750282246547,-590.18,0.00023013,6]
[366482184,1750282246557,-541.68,0.00023013,6]
[366482185,1750282246566,-1186.53,0.00023013,6]
[366482186,1750282246576,-460.0,0.00023013,6]
[366482187,1750282246586,-151.0,0.00023013,7]
[366482188,1750282246596,-1782.14,0.00023013,6]
[366482189,1750282246605,-460.0,0.00023013,6]
[366482190,1750282246614,-460.0,0.00023013,6]
[366482191,1750282246624,-460.0,0.00023013,6]
[366482192,1750282246634,-2395.03,0.00023013,6]
[366482193,1750282246644,-1898.95,0.00023013,6]
[366482194,1750282246653,-460.0,0.00023013,2]
[366482195,1750282246662,-782.87,0.00023013,6]
[366482196,1750282246672,-460.0,0.00023013,6]
[366482197,1750282246681,-460.0,0.00023013,6]
[366482198,1750282246690,-5818.81,0.00023013,6]
[366482199,1750282246699,-500.0,0.00023021,2]
[366482200,1750282246709,-1000.0,0.00023021,2]
[366482201,1750282246719,-500.0,0.0002304,6]
[366482202,1750282246728,-500.0,0.0002304,6]
[366482203,1750282246738,-766.0,0.0002304,6]
[366482204,1750282246748,-500.0,0.0002304,6]
[366482205,1750282246758,-500.0,0.00023055,2]
[366482206,1750282246767,-500.0,0.00023068,6]
[366482207,1750282246777,-500.0,0.00023068,6]
[366482208,1750282246786,-766.0,0.00023068,6]
[366482209,1750282246796,-464.0,0.00023068,6]
[366482210,1750282246806,-500.0,0.00023073,2]
[366482211,1750282246815,-502.67521021,0.00023073,2]
[366482212,1750282246824,-500.0,0.00023073,2]
[366482213,1750282246834,-500.0,0.00023095,6]
[366482214,1750282246844,-500.0,0.00023095,6]
[366482215,1750282246853,-766.0,0.00023095,6]
[366482216,1750282246863,-742.75,0.00023096,4]
[366482217,1750282246873,-67335.42,0.000231,7]
[366482218,1750282246883,-500.0,0.00023122,6]
[366482219,1750282246892,-500.0,0.00023122,6]
[366482220,1750282246903,-766.0,0.00023122,6]
[366482221,1750282246914,-157.951968,0.00023138,2]
[366482222,1750282246923,-1463.28359729,0.00023141,8]
[366482223,1750282246932,-500.0,0.0002315,6]
[366482224,1750282246941,-500.0,0.0002315,6]
[366482225,1750282246951,-766.0,0.0002315,6]
[366482226,1750282246960,-6417.58066436,0.0002315,2]
[366482227,1750282246970,-168.0,0.00023156,2]
[366482228,1750282246979,-266.0,0.00023159,2]
[366482229,1750282246989,-500.0,0.00023177,6]
[366482230,1750282246998,-766.0,0.00023177,6]
[366482231,1750282247007,-468.05002665,0.00023187,2]
[366482232,1750282247017,-742.75,0.00023196,2]
[366482233,1750282247027,-500.0,0.00023205,6]
[366482234,1750282247036,-766.0,0.00023205,6]
[366482235,1750282247046,-500.0,0.00023232,6]
[366482236,1750282247055,-766.0,0.00023232,6]
[366482237,1750282247065,-500.0,0.00023259,6]
[366482238,1750282247074,-766.0,0.00023259,6]
[366482239,1750282247084,-1500.0,0.00023268,2]
[366482240,1750282247095,-1500.0,0.00023268,2]
[366482241,1750282247104,-1500.0,0.00023268,2]
[366482242,1750282247113,-1800.0,0.00023268,2]
[366482243,1750282247123,-160.0,0.00023286,2]
[366482244,1750282247133,-500.0,0.00023287,6]
[366482245,1750282247143,-766.0,0.00023287,6]
[366482246,1750282247153,-460.0,0.00023287,6]
[366482247,1750282247162,-474.94745615,0.00023287,6]
[366482248,1750282247172,-460.0,0.00023287,6]
[366482249,1750282247181,-460.0,0.00023287,6]
[366482250,1750282247190,-460.0,0.00023287,6]
[366482251,1750282247199,-580.1252963,0.00023287,6]
[366482252,1750282247209,-460.0,0.00023287,6]
[366482253,1750282247218,-460.0,0.00023287,6]
[366482254,1750282247227,-460.0,0.00023287,6]
[366482255,1750282247237,-634.07,0.00023287,6]
[366482256,1750282247246,-527.74,0.00023287,6]
[366482257,1750282247255,-460.0,0.00023287,6]
[366482258,1750282247265,-753.53,0.00023287,6]
[366482259,1750282247275,-460.0,0.00023287,6]
[366482260,1750282247284,-460.0,0.00023287,6]
[366482261,1750282247293,-460.0,0.00023287,6]
[366482262,1750282247302,-460.0,0.00023287,6]
[366482263,1750282247311,-460.0,0.00023287,6]
[366482264,1750282247321,-718.27,0.00023287,6]
[366482265,1750282247333,-460.0,0.00023287,6]
[366482266,1750282247342,-151.0,0.00023287,7]
[366482267,1750282247352,-440.0,0.00023287,6]
[366482268,1750282247362,-420.0,0.00023287,6]
[366482269,1750282247372,-460.0,0.00023287,6]
[366482270,1750282247382,-460.0,0.00023287,6]
[366482271,1750282247391,-460.0,0.00023287,6]
[366482272,1750282247401,-460.0,0.00023287,6]
[366482273,1750282247410,-460.0,0.00023287,6]
[366482274,1750282247419,-151.0,0.00023287,7]
[366482275,1750282247428,-151.0,0.00023287,7]
[366482276,1750282247437,-204.048979,0.00023287,7]
[366482277,1750282247446,-460.0,0.00023287,6]
[366482278,1750282247456,-204.048979,0.00023287,7]
[366482279,1750282247465,-460.0,0.00023287,6]
[366482280,1750282247475,-460.0,0.00023287,6]
[366482281,1750282247484,-151.0,0.00023287,7]
[366482282,1750282247494,-151.0,0.00023287,7]
[366482283,1750282247503,-1293.8,0.00023287,6]
[366482284,1750282247512,-151.0,0.00023287,7]
[366482285,1750282247522,-616.76,0.00023287,6]
[366482286,1750282247533,-460.0,0.00023287,6]
[366482287,1750282247542,-330.0,0.00023287,6]
[366482288,1750282247552,-4062.24,0.00023287,6]
[366482289,1750282247562,-725.3,0.00023287,6]
[366482290,1750282247571,-3306.5,0.00023287,6]
[366482291,1750282247581,-875.66,0.00023287,6]
[366482292,1750282247591,-460.0,0.00023287,6]
[366482293,1750282247601,-948.47,0.00023287,6]
[366482294,1750282247611,-460.0,0.00023287,6]
[366482295,1750282247620,-460.0,0.00023287,6]
[366482296,1750282247630,-460.0,0.00023287,6]
[366482297,1750282247639,-460.0,0.00023287,6]
[366482298,1750282247648,-492.7,0.00023287,6]
[366482299,1750282247658,-460.0,0.00023287,6]
[366482300,1750282247668,-460.0,0.00023287,6]
[366482301,1750282247677,-734.8,0.00023287,6]
[366482302,1750282247687,-460.0,0.00023287,6]
[366482303,1750282247696,-4375.89,0.00023287,6]
[366482304,1750282247706,-460.0,0.00023287,6]
[366482305,1750282247715,-460.0,0.00023287,6]
[366482306,1750282247724,-350.0,0.00023287,6]
[366482307,1750282247734,-4111.9,0.00023287,6]
[366482308,1750282247743,-460.0,0.00023287,6]
[366482309,1750282247753,-846.78,0.00023287,6]
[366482310,1750282247763,-460.0,0.00023287,6]
[366482311,1750282247773,-151.0,0.00023287,7]
[366482312,1750282247783,-1793.91,0.00023287,6]
[366482313,1750282247793,-2448.44,0.00023287,6]
[366482314,1750282247803,-782.59,0.00023287,6]
[366482315,1750282247812,-610.21,0.00023287,6]
[366482316,1750282247822,-3378.4,0.00023287,6]
[366482317,1750282247831,-460.0,0.00023287,6]
[366482318,1750282247841,-460.0,0.00023287,6]
[366482319,1750282247851,-460.0,0.00023287,6]
[366482320,1750282247860,-460.0,0.00023287,6]
[366482321,1750282247870,-1409.21,0.00023287,6]
[366482322,1750282247879,-390.0,0.00023287,6]
[366482323,1750282247889,-460.0,0.00023287,6]
[366482324,1750282247898,-766.64,0.00023287,6]
[366482325,1750282247907,-460.0,0.00023287,6]
[366482326,1750282247917,-460.0,0.00023287,6]
[366482327,1750282247926,-276.40236497,0.00023287,6]
[366482328,1750282247935,-460.0,0.00023287,6]
[366482329,1750282247945,-789.31,0.00023287,6]
[366482330,1750282247954,-460.0,0.00023287,6]
[366482331,1750282247963,-1460.02,0.00023287,6]
[366482332,1750282247972,-464.29,0.00023287,6]
[366482333,1750282247981,-460.0,0.00023287,6]
[366482334,1750282247991,-460.0,0.00023287,6]
[366482335,1750282248000,-460.0,0.00023287,6]
[366482336,1750282248009,-460.0,0.00023287,6]
[366482337,1750282248019,-463.21,0.00023287,6]
[366482338,1750282248028,-1095.89,0.00023287,6]
[366482339,1750282248038,-1504.38,0.00023287,6]
[366482340,1750282248048,-460.0,0.00023287,6]
[366482341,1750282248058,-460.0,0.00023287,6]
[366482342,1750282248068,-327.85332849,0.00023287,6]
[366482343,1750282248078,-1701.83,0.00023287,6]
[366482344,1750282248087,-460.0,0.00023287,6]
[366482345,1750282248097,-694.76,0.00023287,6]
[366482346,1750282248107,-513.06,0.00023287,6]
[366482347,1750282248117,-624.32,0.00023287,6]
[366482348,1750282248125,-460.0,0.00023287,6]
[366482349,1750282248134,-460.0,0.00023287,6]
[366482350,1750282248144,-369.166354,0.00023287,7]
[366482351,1750282248153,-635.9,0.00023287,6]
[366482352,1750282248162,-460.0,0.00023287,6]
[366482353,1750282248171,-2273.06,0.00023287,6]
[366482354,1750282248180,-369.166354,0.00023287,7]
[366482355,1750282248189,-460.0,0.00023287,6]
[366482356,1750282248198,-460.0,0.00023287,6]
[366482357,1750282248207,-182.40805665,0.00023287,6]
[366482358,1750282248216,-163.22731964,0.00023287,6]
[366482359,1750282248226,-460.0,0.00023287,6]
[366482360,1750282248236,-390.0,0.00023287,6]
[366482361,1750282248245,-590.18,0.00023287,6]
[366482362,1750282248255,-541.68,0.00023287,6]
[366482363,1750282248264,-1186.53,0.00023287,6]
[366482364,1750282248274,-460.0,0.00023287,6]
[366482365,1750282248284,-1782.14,0.00023287,6]
[366482366,1750282248293,-460.0,0.00023287,6]
[366482367,1750282248303,-460.0,0.00023287,6]
[366482368,1750282248313,-151.0,0.00023287,7]
[366482369,1750282248323,-460.0,0.00023287,6]
[366482370,1750282248337,-2395.03,0.00023287,6]
[366482371,1750282248347,-1898.95,0.00023287,6]
[366482372,1750282248357,-162.365828,0.00023287,7]
[366482373,1750282248366,-460.0,0.00023287,2]
[366482374,1750282248376,-782.87,0.00023287,6]
[366482375,1750282248386,-162.365828,0.00023287,7]
[366482376,1750282248396,-241.59711551,0.00023287,6]
[366482377,1750282248405,-460.0,0.00023287,6]
[366482378,1750282248415,-5818.81,0.00023287,6]
[366482379,1750282248425,-742.75,0.00023296,5]
[366482380,1750282248435,-375.79,0.000233,7]
[366482381,1750282248444,-1463.28359729,0.00023314,9]
[366482382,1750282248454,-291.21606054,0.00023314,6]
[366482383,1750282248464,-766.0,0.00023314,6]
[366482384,1750282248474,-766.0,0.00023342,6]
[366482385,1750282248484,-500.0,0.00023365,2]
[366482386,1750282248494,-766.0,0.00023369,6]
[366482387,1750282248504,-500.0,0.0002339,2]
[366482388,1750282248513,-275.711339,0.0002339,7]
[366482389,1750282248523,-151.0,0.0002339,7]
[366482390,1750282248533,-151.0,0.0002339,7]
[366482391,1750282248542,-742.75,0.00023396,6]
[366482392,1750282248552,-766.0,0.00023396,6]
[366482393,1750282248562,-500.0,0.00023398,2]
[366482394,1750282248571,-766.0,0.00023424,6]
[366482395,1750282248582,-5000.0,0.00023432,2]
[366482396,1750282248591,-55993.79211832,0.00023449,2]
[366482397,1750282248603,-773.04075861,0.00023451,6]
[366482398,1750282248613,-151.0,0.0002346,7]
[366482399,1750282248623,-151.0,0.0002346,7]
[366482400,1750282248633,-2033.913826,0.0002346,3]
[366482401,1750282248642,-151.0,0.0002346,2]
[366482402,1750282248652,-151.0,0.0002346,2]
[366482403,1750282248661,-1463.28359729,0.00023486,9]
[366482404,1750282248671,-742.75,0.00023496,7]
[366482405,1750282248682,-161.31123895,0.000235,7]
[366482406,1750282248691,-500.0,0.00023502,2]
[366482407,1750282248701,-2018.58,0.00023535,2]
[366482408,1750282248711,-460.0,0.00023561,6]
[366482409,1750282248721,-387.9,0.00023561,6]
[366482410,1750282248731,-460.0,0.00023561,6]
[366482411,1750282248741,-514.65257834,0.00023561,6]
[366482412,1750282248750,-151.0,0.00023561,7]
[366482413,1750282248760,-151.0,0.00023561,7]
[366482414,1750282248770,-460.0,0.00023561,6]
[366482415,1750282248780,-440.0,0.00023561,6]
[366482416,1750282248790,-460.0,0.00023561,6]
[366482417,1750282248799,-634.07,0.00023561,6]
[366482418,1750282248809,-527.74,0.00023561,6]
[366482419,1750282248818,-460.0,0.00023561,6]
[366482420,1750282248828,-753.53,0.00023561,6]
[366482421,1750282248838,-151.0,0.00023561,7]
[366482422,1750282248848,-460.0,0.00023561,6]
[366482423,1750282248858,-360.43585024,0.00023561,6]
[366482424,1750282248868,-460.0,0.00023561,6]
[366482425,1750282248877,-151.0,0.00023561,7]
[366482426,1750282248887,-151.0,0.00023561,7]
[366482427,1750282248897,-460.0,0.00023561,6]
[366482428,1750282248906,-718.27,0.00023561,6]
[366482429,1750282248916,-460.0,0.00023561,6]
[366482430,1750282248925,-460.0,0.00023561,6]
[366482431,1750282248934,-460.0,0.00023561,6]
[366482432,1750282248944,-460.0,0.00023561,6]
[366482433,1750282248953,-460.0,0.00023561,6]
[366482434,1750282248963,-460.0,0.00023561,6]
[366482435,1750282248973,-460.0,0.00023561,6]
[366482436,1750282248982,-1293.8,0.00023561,6]
[366482437,1750282248991,-616.76,0.00023561,6]
[366482438,1750282249000,-460.0,0.00023561,6]
[366482439,1750282249009,-4062.24,0.00023561,6]
[366482440,1750282249018,-725.3,0.00023561,6]
[366482441,1750282249027,-3306.5,0.00023561,6]
[366482442,1750282249037,-875.66,0.00023561,6]
[366482443,1750282249046,-460.0,0.00023561,6]
[366482444,1750282249056,-151.0,0.00023561,7]
[366482445,1750282249066,-151.0,0.00023561,7]
[366482446,1750282249075,-948.47,0.00023561,6]
[366482447,1750282249197,-460.0,0.00023561,6]
[366482448,1750282249209,-460.0,0.00023561,6]
[366482449,1750282249220,-460.0,0.00023561,6]
[366482450,1750282249229,-460.0,0.00023561,6]
[366482451,1750282249238,-492.7,0.00023561,6]
[366482452,1750282249248,-460.0,0.00023561,6]
[366482453,1750282249257,-460.0,0.00023561,6]
[366482454,1750282249266,-734.8,0.00023561,6]
[366482455,1750282249275,-460.0,0.00023561,6]
[366482456,1750282249285,-4375.89,0.00023561,6]
[366482457,1750282249294,-460.0,0.00023561,6]
[366482458,1750282249303,-240.0,0.00023561,6]
[366482459,1750282249312,-4111.9,0.00023561,6]
[366482460,1750282249322,-460.0,0.00023561,6]
[366482461,1750282249334,-846.78,0.00023561,6]
[366482462,1750282249343,-460.0,0.00023561,6]
[366482463,1750282249355,-1793.91,0.00023561,6]
[366482464,1750282249364,-2448.44,0.00023561,6]
[366482465,1750282249374,-782.59,0.00023561,6]
[366482466,1750282249382,-610.21,0.00023561,6]
[366482467,1750282249391,-3378.4,0.00023561,6]
[366482468,1750282249400,-460.0,0.00023561,6]
[366482469,1750282249411,-460.0,0.00023561,6]
[366482470,1750282249421,-460.0,0.00023561,6]
[366482471,1750282249431,-460.0,0.00023561,6]
[366482472,1750282249440,-1409.21,0.00023561,6]
[366482473,1750282249449,-460.0,0.00023561,6]
[366482474,1750282249459,-766.64,0.00023561,6]
[366482475,1750282249468,-460.0,0.00023561,6]
[366482476,1750282249477,-397.85,0.00023561,6]
[366482477,1750282249486,-460.0,0.00023561,6]
[366482478,1750282249495,-789.31,0.00023561,6]
[366482479,1750282249504,-460.0,0.00023561,6]
[366482480,1750282249513,-1460.02,0.00023561,6]
[366482481,1750282249523,-464.29,0.00023561,6]
[366482482,1750282249532,-460.0,0.00023561,6]
[366482483,1750282249542,-460.0,0.00023561,6]
[366482484,1750282249552,-460.0,0.00023561,6]
[366482485,1750282249561,-460.0,0.00023561,6]
[366482486,1750282249571,-463.21,0.00023561,6]
[366482487,1750282249581,-1095.89,0.00023561,6]
[366482488,1750282249590,-1504.38,0.00023561,6]
[366482489,1750282249601,-460.0,0.00023561,6]
[366482490,1750282249610,-460.0,0.00023561,6]
[366482491,1750282249619,-1701.83,0.00023561,6]
[366482492,1750282249629,-460.0,0.00023561,6]
[366482493,1750282249638,-694.76,0.00023561,6]
[366482494,1750282249648,-513.06,0.00023561,6]
[366482495,1750282249658,-624.32,0.00023561,6]
[366482496,1750282249667,-460.0,0.00023561,6]
[366482497,1750282249676,-460.0,0.00023561,6]
[366482498,1750282249686,-635.9,0.00023561,6]
[366482499,1750282249695,-460.0,0.00023561,6]
[366482500,1750282249705,-2273.06,0.00023561,6]
[366482501,1750282249714,-460.0,0.00023561,6]
[366482502,1750282249724,-460.0,0.00023561,6]
[366482503,1750282249732,-460.0,0.00023561,6]
[366482504,1750282249741,-590.18,0.00023561,6]
[366482505,1750282249751,-541.68,0.00023561,6]
[366482506,1750282249759,-1186.53,0.00023561,6]
[366482507,1750282249768,-460.0,0.00023561,6]
[366482508,1750282249777,-1782.14,0.00023561,6]
[366482509,1750282249786,-460.0,0.00023561,6]
[366482510,1750282249795,-460.0,0.00023561,6]
[366482511,1750282249804,-151.0,0.00023561,7]
[366482512,1750282249813,-460.0,0.00023561,6]
[366482513,1750282249822,-2395.03,0.00023561,6]
[366482514,1750282249831,-1898.95,0.00023561,6]
[366482515,1750282249842,-162.365828,0.00023561,7]
[366482516,1750282249851,-460.0,0.00023561,2]
[366482517,1750282249860,-782.87,0.00023561,6]
[366482518,1750282249870,-162.365828,0.00023561,7]
[366482519,1750282249879,-460.0,0.00023561,6]
[366482520,1750282249888,-5818.81,0.00023561,6]
[366482521,1750282249897,-1500.0,0.00023568,2]
[366482522,1750282249906,-500.59896885,0.00023569,2]
[366482523,1750282249914,-964.0,0.0002359,2]
[366482524,1750282249923,-406.0,0.0002359,2]
[366482525,1750282249932,-653.0,0.0002359,2]
[366482526,1750282249941,-2160.0,0.0002359,2]
[366482527,1750282249950,-197.0,0.00023592,2]
[366482528,1750282249960,-742.75,0.00023596,4]
[366482529,1750282249969,-53794.10610291,0.00023597,2]
[366482530,1750282249978,-3000.0,0.000236,2]
[366482531,1750282249986,-55474.78,0.000236,2]
[366482532,1750282249995,-151.0,0.000236,7]
[366482533,1750282250004,-369.166354,0.000236,7]
[366482534,1750282250013,-369.166354,0.000236,7]
[366482535,1750282250022,-3000.0,0.0002361,2]
[366482536,1750282250031,-151.0,0.0002361,7]
[366482537,1750282250040,-151.0,0.0002361,7]
[366482538,1750282250048,-151.0,0.00023612,7]
[366482539,1750282250057,-151.0,0.00023612,7]
[366482540,1750282250066,-151.0,0.00023612,7]
[366482541,1750282250075,-204.048979,0.00023612,7]
[366482542,1750282250084,-204.048979,0.00023612,7]
[366482543,1750282250093,-151.0,0.00023612,7]
[366482544,1750282250103,-151.0,0.00023612,7]
[366482545,1750282250112,-151.0,0.00023612,7]
[366482546,1750282250121,-3000.0,0.0002362,2]
[366482547,1750282250131,-505.82909745,0.00023621,2]
[366482548,1750282250140,-3000.0,0.0002363,2]
[366482549,1750282250149,-3000.0,0.0002364,2]
[366482550,1750282250158,-151.0,0.00023647,7]
[366482551,1750282250167,-151.0,0.00023647,7]
[366482552,1750282250176,-151.0,0.00023647,7]
[366482553,1750282250186,-151.0,0.00023647,7]
[366482554,1750282250195,-3000.0,0.0002365,2]
[366482555,1750282250205,-1463.28359729,0.00023659,9]
[366482556,1750282250214,-3000.0,0.0002366,2]
[366482557,1750282250223,-3000.0,0.0002367,2]
[366482558,1750282250232,-246.31864928,0.00023672,2]
[366482559,1750282250242,-3000.0,0.0002368,2]
[366482560,1750282250251,-800.0,0.00023685,2]
[366482561,1750282250260,-6817.81263633,0.00023687,2]
[366482562,1750282250270,-3000.0,0.0002369,2]
[366482563,1750282250279,-742.75,0.00023696,2]
[366482564,1750282250288,-3000.0,0.000237,2]
[366482565,1750282250297,-168.0,0.00023705,2]
[366482566,1750282250307,-3000.0,0.0002371,2]
[366482567,1750282250316,-176.14,0.00023714,2]
[366482568,1750282250325,-3000.0,0.0002372,2]
[366482569,1750282250338,-168.0,0.0002372,2]
[366482570,1750282250348,-3000.0,0.0002373,2]
[366482571,1750282250357,-151.0,0.00023735,7]
[366482572,1750282250367,-151.0,0.00023735,7]
[366482573,1750282250378,-3000.0,0.0002374,2]
[366482574,1750282250387,-154.059257,0.0002374,7]
[366482575,1750282250396,-248.0,0.0002374,2]